bitfinex/quotes_BTCUSD_20240703
["timestamp","ask_amount","ask_price","bid_price","bid_amount"]
[1720010259783,0.01928264,60163.0,60162.0,0.16662282]
[1720010259984,0.01928264,60163.0,60162.0,0.1602988]
[1720010260458,0.01928264,60163.0,60162.0,0.1642988]
[1720010260653,0.01871273,60169.0,60162.0,0.1942988]
[1720010260654,0.01979975,60168.0,60162.0,0.1942988]
[1720010260880,0.0196382,60167.0,60164.0,0.03]
[1720010261099,0.0196382,60166.0,60164.0,0.19362268]
[1720010261311,0.0196382,60165.0,60164.0,0.19362268]
[1720010261933,0.0196382,60165.0,60164.0,0.16362268]
[1720010262299,1.0196382,60165.0,60164.0,0.1602988]
[1720010262501,1.1196382,60165.0,60164.0,0.1602988]
[1720010262946,1.25737329,60165.0,60164.0,0.1602988]
[1720010263600,1.1,60165.0,60164.0,0.1612988]
[1720010263802,1.13827732,60165.0,60164.0,0.1612988]
[1720010264217,1.13819979,60165.0,60164.0,0.001]
[1720010265235,1.11948706,60165.0,60164.0,0.00192768]
[1720010265517,1.20653263,60165.0,60164.0,0.00192768]
[1720010266572,1.20653263,60165.0,60164.0,0.001]
[1720010266827,1.18795953,60165.0,60164.0,0.001]
[1720010267035,1.20768894,60165.0,60164.0,0.001]
[1720010267438,0.01871273,60162.0,60157.0,0.1385]
[1720010267642,0.239,60159.0,60158.0,0.1602988]
[1720010267861,0.35903658,60159.0,60158.0,0.1602988]
[1720010269052,1.35903658,60159.0,60158.0,0.1602988]
[1720010269851,1.339,60159.0,60158.0,0.1602988]
[1720010270030,1.35913351,60159.0,60158.0,0.1602988]
[1720010270864,1.35913351,60159.0,60158.0,0.004]
[1720010271068,1.35913351,60159.0,60158.0,0.008]
[1720010271642,1.42829283,60159.0,60158.0,0.008]
[1720010271866,1.42829283,60159.0,60158.0,0.1982988]
[1720010272062,1.12013351,60159.0,60158.0,0.1942988]
[1720010272267,1.12013351,60159.0,60158.0,0.25822712]
[1720010272463,1.12013351,60159.0,60158.0,0.20558607]
[1720010273129,1.12013351,60159.0,60158.0,0.20975026]
[1720010273330,1.12013351,60159.0,60158.0,0.20575026]
[1720010274142,1.12013351,60159.0,60158.0,0.82305026]
[1720010274566,1.12013351,60159.0,60158.0,0.82605026]
[1720010274766,1.12013351,60159.0,60158.0,0.52605026]
[1720010274997,1.12013351,60159.0,60158.0,0.53005026]
[1720010275150,1.12013351,60159.0,60158.0,0.52705026]
[1720010275553,1.02013351,60159.0,60158.0,1.25177087]
[1720010275729,1.0,60159.0,60158.0,1.25177087]
[1720010275933,1.0,60159.0,60158.0,0.95177087]
[1720010276282,1.0,60159.0,60158.0,0.94844668]
[1720010276500,1.0,60159.0,60158.0,0.52772607]
[1720010276721,1.01699962,60159.0,60158.0,0.52772607]
[1720010277339,1.11699962,60159.0,60158.0,0.1602988]
[1720010277745,1.11899962,60159.0,60158.0,0.1812988]
[1720010279154,1.11822357,60159.0,60158.0,0.1812988]
[1720010279758,1.11822179,60159.0,60158.0,0.1812988]
[1720010280206,1.11822179,60159.0,60158.0,0.33832868]
[1720010280429,1.11822179,60159.0,60158.0,0.3201988]
[1720010281661,1.11815542,60159.0,60158.0,0.3201988]
[1720010282074,1.11815542,60159.0,60158.0,0.7997988]
[1720010282889,1.11815542,60159.0,60158.0,1.0997988]
[1720010283507,1.102,60159.0,60158.0,1.0997988]
[1720010283721,1.11864424,60159.0,60158.0,1.0997988]
[1720010284361,1.11864424,60159.0,60158.0,0.4997988]
[1720010284773,1.102,60159.0,60158.0,0.4997988]
[1720010284981,1.11837,60159.0,60158.0,0.4997988]
[1720010286339,1.11837,60159.0,60158.0,0.3201988]
[1720010287468,1.11837,60159.0,60158.0,0.1812988]
[1720010288110,1.11687893,60159.0,60158.0,0.1812988]
[1720010288526,1.11673743,60159.0,60158.0,0.1812988]
[1720010288722,1.11656828,60159.0,60158.0,0.1812988]
[1720010290497,1.11656828,60159.0,60158.0,0.4812988]
[1720010290876,1.11741478,60159.0,60158.0,0.4812988]
[1720010291085,1.11741478,60159.0,60158.0,0.9193988]
[1720010291695,1.11741478,60159.0,60158.0,1.0878988]
[1720010293364,1.10183085,60159.0,60158.0,1.19668868]
[1720010293787,1.10183085,60159.0,60158.0,1.0878988]
[1720010293989,1.00183085,60159.0,60158.0,1.0878988]
[1720010294945,1.00083085,60159.0,60158.0,1.0748988]
[1720010295293,0.99983085,60159.0,60158.0,1.0808988]
[1720010295495,1.00083085,60159.0,60158.0,1.22701429]
[1720010295739,0.99983085,60159.0,60158.0,1.0668988]
[1720010296152,1.00083085,60159.0,60158.0,1.0858988]
[1720010297414,0.99983085,60159.0,60158.0,1.0808988]
[1720010297617,0.99983085,60159.0,60158.0,1.19201429]
[1720010297800,0.99983085,60159.0,60158.0,1.20601429]
[1720010298022,0.99983085,60159.0,60158.0,1.19201429]
[1720010298454,0.99983085,60159.0,60158.0,1.20601429]
[1720010299248,0.99983085,60159.0,60158.0,1.0948988]
[1720010299661,0.99983085,60159.0,60158.0,0.7948988]
[1720010300439,0.99983085,60159.0,60158.0,0.6263988]
[1720010300651,0.99983085,60159.0,60158.0,0.6123988]
[1720010300861,0.99983085,60159.0,60158.0,0.4742988]
[1720010301087,1.00083085,60159.0,60158.0,0.4882988]
[1720010301278,1.01354073,60159.0,60158.0,0.4602988]
[1720010301676,1.00083085,60159.0,60158.0,0.4742988]
[1720010301882,1.00083085,60159.0,60158.0,0.7742988]
[1720010302104,1.00083085,60159.0,60158.0,0.7882988]
[1720010302366,1.00083085,60159.0,60158.0,0.4882988]
[1720010302560,1.00083085,60159.0,60158.0,0.4742988]
[1720010302764,0.70553434,60159.0,60158.0,0.4742988]
[1720010302976,0.72043348,60159.0,60158.0,0.4882988]
[1720010303244,0.7204351,60159.0,60158.0,0.4882988]
[1720010305295,0.7204351,60159.0,60158.0,0.7882988]
[1720010305522,0.7204351,60159.0,60158.0,0.4882988]
[1720010305727,0.7204351,60159.0,60158.0,0.7882988]
[1720010306156,0.70553434,60159.0,60158.0,0.7882988]
[1720010306364,0.70553434,60159.0,60158.0,0.9266988]
[1720010307433,0.70553434,60159.0,60158.0,1.22481987]
[1720010309156,0.70553434,60159.0,60158.0,1.49407594]
[1720010310522,0.70553434,60159.0,60158.0,1.25507594]
[1720010310946,0.70453434,60159.0,60158.0,1.24107594]
[1720010311200,0.70453434,60159.0,60158.0,1.22707594]
[1720010311400,0.70453434,60159.0,60158.0,1.24107594]
[1720010311907,0.70453434,60159.0,60158.0,1.25507594]
[1720010314028,0.70453434,60159.0,60158.0,1.27807594]
[1720010322826,0.70453434,60159.0,60158.0,0.4882988]
[1720010323026,0.70453434,60159.0,60158.0,0.7882988]
[1720010323245,0.70453434,60159.0,60158.0,0.4882988]
[1720010323809,0.70453434,60159.0,60158.0,0.7882988]
[1720010324603,0.70453434,60159.0,60158.0,0.7742988]
[1720010325229,0.70453434,60159.0,60158.0,0.4742988]
[1720010325635,0.70443936,60159.0,60158.0,0.4602988]
[1720010325862,0.70443936,60159.0,60158.0,0.4742988]
[1720010326068,0.70443936,60159.0,60158.0,0.4882988]
[1720010327428,0.70443936,60159.0,60158.0,0.91249418]
[1720010328404,0.70443936,60159.0,60158.0,0.61249418]
[1720010328730,0.70443936,60159.0,60158.0,0.4882988]
[1720010329929,1.02913936,60159.0,60158.0,0.1882988]
[1720010330138,1.14747337,60159.0,60158.0,0.1882988]
[1720010331306,1.14747337,60159.0,60158.0,0.1742988]
[1720010331677,1.14747337,60159.0,60158.0,0.1882988]
[1720010332277,1.14822502,60159.0,60158.0,0.1882988]
[1720010335417,1.1482588,60159.0,60158.0,0.1882988]
[1720010338128,0.8235588,60159.0,60158.0,0.1882988]
[1720010338282,0.8235588,60159.0,60158.0,0.26712868]
[1720010338708,0.82246555,60159.0,60158.0,0.26712868]
[1720010339123,0.82246598,60159.0,60158.0,0.26712868]
[1720010339295,0.82246598,60159.0,60158.0,0.27045285]
[1720010339971,0.82246598,60159.0,60158.0,0.19162297]
[1720010340374,0.82246598,60159.0,60158.0,0.49162297]
[1720010340577,0.82246598,60159.0,60158.0,0.79162297]
[1720010340578,0.80443936,60159.0,60158.0,0.79162297]
[1720010340998,0.80443936,60159.0,60158.0,0.49162297]
[1720010341197,0.80443936,60159.0,60158.0,0.60334527]
[1720010341608,0.80443936,60159.0,60158.0,0.90334527]
[1720010341842,0.80443936,60159.0,60158.0,0.79162297]
[1720010342396,0.80443936,60159.0,60158.0,0.79245297]
[1720010342824,0.80535237,60159.0,60158.0,0.79245297]
[1720010343181,0.80535237,60159.0,60158.0,0.4891288]
[1720010343441,0.82335674,60159.0,60158.0,0.4891288]
[1720010343641,0.82335674,60159.0,60158.0,0.1891288]
[1720010344198,0.82336056,60159.0,60158.0,0.1891288]
[1720010344409,1.15756056,60159.0,60158.0,0.1891288]
[1720010345691,1.21756056,60159.0,60158.0,0.1891288]
[1720010346853,1.21756056,60159.0,60158.0,0.02883]
[1720010347054,1.3692963,60159.0,60158.0,0.02883]
[1720010347259,1.61310111,60159.0,60158.0,0.02451138]
[1720010347479,1.77974677,60159.0,60158.0,0.02451138]
[1720010347678,1.61310111,60159.0,60158.0,0.02451138]
[1720010348081,1.61310111,60159.0,60158.0,0.01483]
[1720010348082,1.64310111,60159.0,60158.0,0.01483]
[1720010348405,0.16974393,60138.0,60136.0,0.00276278]
[1720010348643,0.36172217,60137.0,60136.0,0.00276278]
[1720010348844,0.69796137,60137.0,60136.0,0.00276278]
[1720010349653,0.81156137,60137.0,60136.0,0.00276278]
[1720010349873,0.81156137,60137.0,60136.0,0.01276278]
[1720010350057,0.89271751,60137.0,60136.0,0.01276278]
[1720010350258,0.89271751,60137.0,60136.0,0.00276278]
[1720010350480,0.80910007,60137.0,60136.0,0.00276278]
[1720010350618,0.92299806,60137.0,60136.0,0.00276278]
[1720010350818,0.89299806,60137.0,60136.0,0.00276278]
[1720010351047,0.27534393,60130.0,60129.0,0.4772]
[1720010351243,0.16974393,60122.0,60120.0,0.009185]
[1720010351455,0.11578031,60121.0,60120.0,0.009185]
[1720010351629,0.22138031,60121.0,60120.0,0.009185]
[1720010351833,0.39112424,60121.0,60120.0,0.009185]
[1720010352059,0.39712424,60121.0,60120.0,0.009185]
[1720010352313,0.33712424,60121.0,60120.0,0.009185]
[1720010352661,0.39712424,60121.0,60120.0,0.009185]
[1720010352863,0.42105635,60121.0,60120.0,0.010185]
[1720010353118,0.38234393,60121.0,60120.0,0.010185]
[1720010353323,0.38134393,60121.0,60120.0,0.010185]
[1720010353785,0.38934393,60121.0,60120.0,0.010185]
[1720010354194,0.32934393,60121.0,60120.0,0.010185]
[1720010354364,0.32934393,60121.0,60120.0,0.009185]
[1720010355018,0.39134393,60121.0,60120.0,0.009185]
[1720010355243,0.38134393,60121.0,60120.0,0.009185]
[1720010355654,0.41234393,60121.0,60120.0,0.010185]
[1720010355864,0.38342942,60121.0,60120.0,0.010185]
[1720010356096,0.44767236,60121.0,60120.0,0.010185]
[1720010356296,0.44767236,60121.0,60120.0,0.00741443]
[1720010356297,0.44776105,60121.0,60120.0,0.00741443]
[1720010356508,0.47776105,60121.0,60120.0,0.00480843]
[1720010356716,0.47776105,60121.0,60120.0,0.00380843]
[1720010356917,0.45577927,60121.0,60120.0,0.00380843]
[1720010357116,0.45577927,60121.0,60120.0,0.00480843]
[1720010357117,0.46777927,60121.0,60120.0,0.00480843]
[1720010357471,0.22974393,60110.0,60109.0,0.47586666]
[1720010357701,0.61154393,60110.0,60109.0,0.47586666]
[1720010358022,0.7192628,60110.0,60109.0,0.47586666]
[1720010358218,0.7192628,60110.0,60108.0,0.00835]
[1720010358219,0.30254393,60109.0,60108.0,0.00835]
[1720010358482,0.53294393,60105.0,60092.0,0.47586666]
[1720010358700,0.72124497,60105.0,60092.0,0.47586666]
[1720010358907,0.80833122,60105.0,60092.0,0.47586666]
[1720010359117,0.69003018,60105.0,60093.0,0.00332799]
[1720010359321,0.32683018,60105.0,60093.0,0.08348381]
[1720010359831,0.10117418,60105.0,60104.0,0.1686488]
[1720010360031,0.00217418,60105.0,60104.0,0.1756488]
[1720010360238,0.00317418,60105.0,60104.0,0.1806488]
[1720010361116,0.00317418,60105.0,60104.0,0.4806488]
[1720010361306,0.002,60105.0,60104.0,0.4806488]
[1720010361665,0.16974393,60112.0,60105.0,0.3]
[1720010361862,0.00121885,60120.0,60113.0,0.3]
[1720010362087,0.00121885,60120.0,60114.0,0.16362505]
[1720010362502,0.239,60122.0,60114.0,0.1602988]
[1720010362778,0.16974393,60125.0,60115.0,0.00332666]
[1720010363002,0.16974393,60125.0,60116.0,0.1602988]
[1720010363215,0.1,60124.0,60117.0,0.19332633]
[1720010363426,0.16974393,60122.0,60118.0,0.1602988]
[1720010363740,0.1,60121.0,60118.0,0.1602988]
[1720010364136,0.1,60121.0,60119.0,0.00332639]
[1720010364303,0.1,60121.0,60120.0,0.1602988]
[1720010364730,0.1,60127.0,60120.0,0.1602988]
[1720010364927,0.299,60133.0,60121.0,0.00332622]
[1720010364928,0.16974393,60131.0,60121.0,0.00332622]
[1720010365128,0.16974393,60134.0,60122.0,0.3049988]
[1720010365373,0.16974393,60132.0,60123.0,0.00332596]
[1720010365574,0.16974393,60132.0,60124.0,0.1602988]
[1720010365774,0.16974393,60132.0,60125.0,0.00332598]
[1720010365965,0.16974393,60132.0,60126.0,0.1602988]
[1720010366501,0.1,60131.0,60126.0,0.1602988]
[1720010367319,0.1,60131.0,60126.0,0.1622988]
[1720010367981,0.16974393,60132.0,60126.0,0.1622988]
[1720010368180,0.1,60131.0,60126.0,0.1622988]
[1720010369133,0.1,60131.0,60128.0,0.1413]
[1720010369376,0.16974393,60137.0,60130.0,0.1852]
[1720010369574,0.16974393,60143.0,60131.0,0.16362422]
[1720010370228,0.16974393,60151.0,60135.0,0.3]
[1720010370444,0.16974393,60148.0,60136.0,0.30332497]
[1720010370636,0.01697439,60147.0,60137.0,0.1602988]
[1720010370842,0.005,60143.0,60137.0,0.1602988]
[1720010371170,0.006,60143.0,60137.0,0.1602988]
[1720010372179,0.001,60143.0,60137.0,0.1602988]
[1720010372390,0.001,60143.0,60138.0,0.00332521]
[1720010372627,0.001,60143.0,60139.0,0.1602988]
[1720010372844,0.1,60147.0,60140.0,0.00332507]
[1720010373055,0.1,60147.0,60141.0,0.1602988]
[1720010373056,0.001,60143.0,60141.0,0.1602988]
[1720010373257,0.06,60145.0,60141.0,0.1602988]
[1720010373686,0.001,60143.0,60141.0,0.1602988]
[1720010373896,0.001,60143.0,60134.0,0.1379]
[1720010373897,0.239,60142.0,60134.0,0.1379]
[1720010374120,0.1,60141.0,60139.0,0.014]
[1720010374328,0.1,60141.0,60139.0,0.1742988]
[1720010374526,0.1,60141.0,60139.0,0.1602988]
[1720010376022,0.001,60141.0,60139.0,0.1702988]
[1720010377060,0.00192401,60141.0,60140.0,0.1602988]
[1720010377216,0.00192401,60141.0,60140.0,0.16362403]
[1720010377412,0.00192401,60141.0,60140.0,0.1602988]
[1720010379168,0.00092401,60141.0,60140.0,0.1602988]
[1720010379568,0.00092401,60141.0,60140.0,0.1842988]
[1720010379569,0.0289908,60141.0,60140.0,0.1842988]
[1720010379765,0.00192401,60141.0,60140.0,0.1842988]
[1720010381145,0.00192401,60141.0,60140.0,0.024]
[1720010384043,0.06192401,60141.0,60140.0,0.024]
[1720010384431,0.35366794,60141.0,60140.0,0.024]
[1720010384632,0.59266794,60141.0,60140.0,0.024]
[1720010384826,0.76999473,60141.0,60140.0,0.024]
[1720010385642,0.53099473,60141.0,60140.0,0.024]
[1720010385867,0.76899473,60141.0,60140.0,0.009]
[1720010386062,0.76999473,60141.0,60140.0,0.017]
[1720010386283,0.76999473,60141.0,60140.0,0.008]
[1720010386483,0.16974393,60136.0,60127.0,0.47586666]
[1720010386749,0.1,60135.0,60129.0,0.179]
[1720010386945,0.1,60135.0,60130.0,0.16362454]
[1720010388678,0.16974393,60136.0,60130.0,0.16362454]
[1720010388913,0.1,60135.0,60133.0,0.08015582]
[1720010389089,0.1,60135.0,60134.0,0.1602988]
[1720010389090,0.101,60135.0,60134.0,0.1602988]
[1720010389295,0.101,60135.0,60134.0,0.4602988]
[1720010389501,0.1,60135.0,60134.0,0.4602988]
[1720010389694,0.101,60135.0,60134.0,0.4602988]
[1720010389948,0.002,60135.0,60134.0,0.6371988]
[1720010390074,0.001,60135.0,60134.0,0.87977922]
[1720010390274,0.00092401,60141.0,60134.0,0.57977922]
[1720010390632,0.00092401,60141.0,60135.0,0.00332518]
[1720010390832,0.00092401,60141.0,60136.0,0.1602988]
[1720010391659,0.00192401,60141.0,60136.0,0.1602988]
[1720010393603,0.00092401,60141.0,60136.0,0.1732988]
[1720010394053,0.10830705,60146.0,60136.0,0.1872988]
[1720010394228,0.10830705,60144.0,60136.0,0.1872988]
[1720010394426,0.33828503,60143.0,60136.0,0.1872988]
[1720010394648,0.13589208,60142.0,60136.0,0.1872988]
[1720010394856,0.02758503,60141.0,60136.0,0.027]
[1720010395060,0.02758503,60141.0,60136.0,0.013]
[1720010395400,0.02758503,60141.0,60136.0,0.023]
[1720010395812,0.10830705,60142.0,60136.0,0.023]
[1720010395813,0.02791195,60140.0,60136.0,0.023]
[1720010396012,0.10830705,60142.0,60136.0,0.023]
[1720010396013,0.02791195,60139.0,60136.0,0.023]
[1720010396193,0.02791195,60138.0,60136.0,0.023]
[1720010396401,0.02791195,60137.0,60136.0,0.023]
[1720010396601,0.02791195,60137.0,60136.0,0.01]
[1720010396877,0.1,60141.0,60136.0,0.021]
[1720010397077,0.02786253,60140.0,60136.0,0.011]
[1720010397241,0.02786253,60139.0,60132.0,0.06]
[1720010397438,0.02786253,60138.0,60136.0,0.014]
[1720010397643,0.02886253,60137.0,60136.0,0.02]
[1720010397846,0.02786253,60137.0,60133.0,0.1602988]
[1720010398048,0.20830705,60142.0,60133.0,0.1602988]
[1720010398233,0.02785674,60141.0,60136.0,0.005]
[1720010398427,0.02785674,60141.0,60138.0,0.1525]
[1720010398626,0.02785674,60141.0,60138.0,0.3127988]
[1720010399062,0.20830705,60142.0,60138.0,0.3127988]
[1720010399063,0.02759974,60140.0,60138.0,0.3127988]
[1720010399265,0.02759974,60139.0,60138.0,0.3127988]
[1720010399462,0.02759899,60139.0,60138.0,0.3127988]
[1720010400494,0.02759899,60139.0,60138.0,0.3727988]
[1720010400693,0.20830705,60142.0,60138.0,0.3177988]
[1720010400894,0.02775633,60141.0,60139.0,0.1602988]
[1720010401096,0.02775633,60140.0,60139.0,0.1602988]
[1720010401303,0.20830705,60142.0,60139.0,0.1602988]
[1720010401538,0.02775596,60141.0,60139.0,0.1602988]
[1720010402536,0.02780602,60140.0,60139.0,0.1602988]
[1720010403706,0.02780602,60140.0,60139.0,0.1722988]
[1720010403907,0.02780602,60140.0,60139.0,0.1602988]
[1720010404476,0.02768982,60140.0,60139.0,0.1842988]
[1720010405038,0.02768982,60140.0,60139.0,0.1702988]
[1720010405453,0.02768982,60140.0,60139.0,0.1822988]
[1720010406744,0.02768982,60140.0,60139.0,0.2422988]
[1720010406946,0.02768982,60140.0,60139.0,0.34070974]
[1720010407145,0.10830705,60145.0,60141.0,0.06]
[1720010407344,0.10830705,60145.0,60142.0,0.1602988]
[1720010407345,0.12623796,60144.0,60142.0,0.1602988]
[1720010407512,0.02623732,60143.0,60142.0,0.1602988]
[1720010408161,0.02623732,60143.0,60137.0,0.189]
[1720010408361,0.02623732,60142.0,60131.0,0.0165246]
[1720010408562,0.13454437,60142.0,60141.0,0.01]
[1720010408768,0.23454437,60142.0,60141.0,0.01]
[1720010408940,0.23454437,60142.0,60141.0,0.004]
[1720010409820,0.3144687,60142.0,60141.0,0.004]
[1720010410026,0.3144687,60142.0,60137.0,0.008]
[1720010410254,0.12623732,60141.0,60137.0,0.008]
[1720010410460,0.02623732,60140.0,60137.0,0.008]
[1720010410743,0.03269727,60139.0,60137.0,0.008]
[1720010410929,0.03269727,60138.0,60137.0,0.008]
[1720010411141,0.03263716,60138.0,60135.0,0.00084]
[1720010411347,0.03263716,60137.0,60135.0,0.00084]
[1720010411470,0.2651295,60144.0,60135.0,0.01695388]
[1720010411826,0.00092401,60146.0,60135.0,0.01695388]
[1720010411827,0.07985447,60143.0,60138.0,0.06]
[1720010412034,0.00092401,60146.0,60139.0,0.2202988]
[1720010412236,0.00092401,60146.0,60140.0,0.06580338]
[1720010412370,0.00092401,60146.0,60141.0,0.1602988]
[1720010412582,0.00092401,60146.0,60141.0,0.2202988]
[1720010412804,0.00092401,60146.0,60142.0,0.06]
[1720010413009,0.00092401,60146.0,60145.0,0.06]
[1720010413212,0.00092401,60146.0,60145.0,0.54822374]
[1720010413472,0.00092401,60146.0,60145.0,0.48822374]
[1720010414427,0.00092401,60146.0,60145.0,0.4848988]
[1720010414843,0.00092401,60146.0,60145.0,0.4938988]
[1720010415267,0.00092401,60146.0,60145.0,0.5048988]
[1720010416654,0.00092401,60146.0,60145.0,0.5648988]
[1720010417156,0.00092401,60146.0,60145.0,0.02]
[1720010417771,0.03695641,60146.0,60145.0,0.02]
[1720010417977,0.34819249,60146.0,60145.0,0.02]
[1720010418195,0.51482348,60146.0,60145.0,0.02]
[1720010418405,0.44819249,60146.0,60145.0,0.02]
[1720010418821,0.71299249,60146.0,60145.0,0.02]
[1720010419023,0.71299249,60146.0,60145.0,0.009]
[1720010419479,0.74191511,60146.0,60145.0,0.009]
[1720010419687,0.64178462,60146.0,60135.0,0.00084]
[1720010419885,0.2541,60139.0,60135.0,0.00084]
[1720010420089,0.12892691,60138.0,60135.0,0.00084]
[1720010420372,0.02892691,60137.0,60135.0,0.00084]
[1720010420986,0.01025785,60136.0,60135.0,0.00084]
[1720010421132,0.13918476,60136.0,60135.0,0.00284]
[1720010421347,0.03918476,60136.0,60135.0,0.00284]
[1720010421609,0.11025785,60136.0,60135.0,0.00084]
[1720010421814,0.13918476,60136.0,60135.0,0.00084]
[1720010422013,0.13918476,60136.0,60135.0,0.00984]
[1720010422231,0.21578726,60136.0,60135.0,0.00984]
[1720010422685,0.2390019,60136.0,60135.0,0.00584]
[1720010422915,0.1,60136.0,60135.0,0.01384]
[1720010423160,0.1,60138.0,60135.0,0.01384]
[1720010423317,0.13900265,60136.0,60135.0,0.00884]
[1720010423511,0.1,60136.0,60135.0,0.00884]
[1720010423846,0.1,60136.0,60135.0,0.01384]
[1720010424138,0.19768289,60136.0,60135.0,0.01384]
[1720010424432,0.53730971,60136.0,60135.0,0.01384]
[1720010424575,1.01510851,60136.0,60135.0,0.01384]
[1720010424930,0.95510851,60136.0,60135.0,0.01384]
[1720010425143,0.73549971,60136.0,60135.0,0.01384]
[1720010425971,0.23899971,60136.0,60135.0,0.00584]
[1720010426685,0.01025793,60136.0,60135.0,0.3218388]
[1720010426918,0.05823103,60136.0,60135.0,0.3168388]
[1720010427126,0.05823103,60136.0,60135.0,0.3128388]
[1720010427127,0.02225793,60136.0,60135.0,0.3128388]
[1720010427308,0.012,60136.0,60135.0,0.3128388]
[1720010427513,0.05823103,60143.0,60135.0,0.3148388]
[1720010427660,0.05823103,60142.0,60136.0,0.1602988]
[1720010427855,0.05823103,60141.0,60136.0,0.1602988]
[1720010428081,0.05823103,60140.0,60136.0,0.1602988]
[1720010428341,0.15132155,60139.0,60136.0,0.1602988]
[1720010428505,0.15823103,60138.0,60136.0,0.1602988]
[1720010428698,0.05823103,60137.0,60136.0,0.1602988]
[1720010428898,0.05823103,60137.0,60136.0,0.2202988]
[1720010429111,0.05823103,60137.0,60136.0,0.3387988]
[1720010429662,0.1,60138.0,60136.0,0.3387988]
[1720010429900,0.1,60138.0,60135.0,0.00084]
[1720010429901,0.05785021,60137.0,60135.0,0.00084]
[1720010430101,0.05785021,60137.0,60135.0,0.14794]
[1720010430227,0.23992401,60146.0,60136.0,0.003]
[1720010430228,0.19297779,60145.0,60136.0,0.003]
[1720010430435,0.05790047,60144.0,60135.0,0.13994]
[1720010430635,0.05790047,60143.0,60135.0,0.13994]
[1720010430867,0.001,60138.0,60136.0,0.018]
[1720010431021,0.05790047,60137.0,60136.0,0.011]
[1720010431449,0.05790047,60137.0,60135.0,0.00084]
[1720010431647,0.05790047,60136.0,60135.0,0.00084]
[1720010431888,0.04764224,60136.0,60135.0,0.00084]
[1720010432091,0.18915823,60136.0,60135.0,0.00084]
[1720010432299,0.23680047,60136.0,60135.0,0.00084]
[1720010432466,0.33680047,60136.0,60135.0,0.00084]
[1720010433216,0.57580047,60136.0,60135.0,0.00084]
[1720010433649,0.66869737,60136.0,60135.0,0.00084]
[1720010433854,0.76011226,60136.0,60135.0,0.00076354]
[1720010434259,0.66869737,60136.0,60135.0,0.00076354]
[1720010434479,0.5179,60136.0,60135.0,0.00076354]
[1720010434801,0.66983705,60136.0,60135.0,0.00076354]
[1720010435131,0.66983705,60136.0,60135.0,0.00676354]
[1720010435462,0.25193705,60136.0,60135.0,0.00676354]
[1720010436240,0.1,60136.0,60135.0,0.00676354]
[1720010436377,0.15252446,60136.0,60135.0,0.00676354]
[1720010436581,0.10401466,60136.0,60135.0,0.00676354]
[1720010436785,0.11026142,60136.0,60135.0,0.00676354]
[1720010437008,0.25252454,60136.0,60135.0,0.00676354]
[1720010437202,0.30487699,60136.0,60135.0,0.00676354]
[1720010438494,0.79157579,60136.0,60135.0,0.00676354]
[1720010438869,0.73157579,60136.0,60135.0,0.00676354]
[1720010440003,0.73193123,60136.0,60135.0,0.00676354]
[1720010440677,0.51927998,60136.0,60135.0,0.00676354]
[1720010441243,0.68569491,60136.0,60135.0,0.00676354]
[1720010441886,0.25287998,60136.0,60135.0,0.00676354]
[1720010442108,0.15287998,60136.0,60135.0,0.00676354]
[1720010442333,0.239,60142.0,60135.0,0.00676354]
[1720010442483,0.10559627,60136.0,60135.0,0.00676354]
[1720010442695,0.15511855,60136.0,60135.0,0.00676354]
[1720010443372,0.15511855,60136.0,60135.0,1.00676354]
[1720010443498,0.25511855,60136.0,60135.0,1.00676354]
[1720010444105,0.25511855,60136.0,60135.0,1.18576354]
[1720010444511,0.16045715,60136.0,60135.0,1.18576354]
[1720010444729,0.06045715,60136.0,60135.0,1.18576354]
[1720010444931,0.01093487,60136.0,60135.0,1.18576354]
[1720010445102,0.11093487,60143.0,60135.0,1.18576354]
[1720010445306,0.06045715,60142.0,60135.0,1.18576354]
[1720010445506,0.16039229,60141.0,60135.0,1.18576354]
[1720010445806,0.16416663,60140.0,60135.0,1.18576354]
[1720010446002,0.09622566,60141.0,60135.0,1.18576354]
[1720010446003,0.16416663,60139.0,60135.0,1.18176354]
[1720010446257,0.06416663,60138.0,60135.0,1.18176354]
[1720010446506,0.06416663,60137.0,60135.0,1.18176354]
[1720010446652,0.06416663,60136.0,60135.0,1.00276354]
[1720010446859,0.34806605,60136.0,60135.0,1.00276354]
[1720010447095,0.49939229,60136.0,60135.0,1.00276354]
[1720010447270,0.49939229,60136.0,60135.0,1.00076354]
[1720010449223,0.48085938,60136.0,60135.0,1.00476354]
[1720010449379,0.58884558,60136.0,60135.0,1.00476354]
[1720010449598,0.58884558,60136.0,60135.0,1.00676354]
[1720010449793,0.9064583,60136.0,60135.0,1.00676354]
[1720010450397,0.9064583,60136.0,60135.0,1.00476354]
[1720010450595,0.8464583,60136.0,60135.0,1.00476354]
[1720010450819,0.8544583,60136.0,60135.0,1.00576354]
[1720010451020,0.68814558,60136.0,60135.0,1.00576354]
[1720010451197,0.8544583,60136.0,60135.0,1.00576354]
[1720010451396,0.68814558,60136.0,60135.0,1.00576354]
[1720010451602,0.59705274,60136.0,60135.0,1.00176354]
[1720010452003,0.59695888,60136.0,60135.0,1.00176354]
[1720010452223,0.59695888,60136.0,60135.0,1.00076354]
[1720010452224,0.75524727,60136.0,60135.0,1.00076354]
[1720010452424,0.99655768,60136.0,60135.0,1.00076354]
[1720010452655,1.0397135,60136.0,60135.0,1.00070985]
[1720010452854,1.0537135,60136.0,60135.0,1.00270985]
[1720010453047,1.25367485,60136.0,60135.0,1.00270985]
[1720010453461,1.25167485,60136.0,60135.0,1.00170985]
[1720010453650,0.93655768,60136.0,60135.0,1.00070985]
[1720010454049,0.94855768,60136.0,60135.0,1.00170985]
[1720010454770,0.7918988,60136.0,60135.0,1.00170985]
[1720010455001,0.95449712,60136.0,60135.0,1.00270985]
[1720010455173,0.95449712,60136.0,60111.0,0.14015582]
[1720010455174,0.2999,60121.0,60104.0,0.00835]
[1720010455332,0.2,60117.0,60116.0,0.48093494]
[1720010455531,0.2,60117.0,60104.0,0.00835]
[1720010455532,0.06,60115.0,60104.0,0.00835]
[1720010455818,0.62209,60120.0,60106.0,0.3423]
[1720010455819,0.239,60113.0,60106.0,0.3423]
[1720010456057,0.16432777,60112.0,60106.0,0.3423]
[1720010456265,0.16059832,60111.0,60106.0,0.3423]
[1720010456544,0.16059832,60111.0,60104.0,0.00835]
[1720010456545,0.239,60108.0,60104.0,0.00835]
[1720010456729,0.16432777,60107.0,60104.0,0.00835]
[1720010456931,0.06432777,60106.0,60104.0,0.00835]
[1720010457188,0.06432777,60106.0,60105.0,0.33854]
[1720010457745,0.1,60107.0,60105.0,0.33854]